{"text_format":"3","workbook":"xlsx","n_sheets":2,"sheets":["KĀ IZMANTOT ŠO DARBGRĀMATU","KLASES ŽURNĀLS"],"not_rendered":{"defined_names":7},"read":"whole","date_system":"1900"}

{"sheet":"KĀ IZMANTOT ŠO DARBGRĀMATU","index":0,"n_rows":10,"n_cols":2,"rows_kept":10}
[null,"NORĀDĪJUMI"]
[null,"Izmantojiet KLASES ŽURNĀLS darblapu, lai aprēķinātu atzīmes, katram uzdevumam piešķirot noteiktu punktu skaitu. "]
[null,"Norādījumi. Noteikti saglabājiet vērtējumu dublējumkopijas."]
[null,"1. Ierakstiet savas mācību iestādes nosaukumu, mācību priekšmeta informāciju, \nskolēnu vārdus un skolēnu ID (nav obligāti).   "]
[null,"2. Pielāgojiet vērtējumu un vidējo atzīmju tabulu atbilstoši parasti izmantojamajai vērtēšanas sistēmai."]
[null,"3. Ievadiet uzdevumu, testu un pārbaudes darbu nosaukumus (piemēram, \"1. tests\"), sākot ar šūnu H8, kā arī norādiet, cik punkti ir piešķirti katram uzdevumam. "]
[null,"4. Ievadiet katra skolēna rezultātu attiecībā uz katru uzdevumu vai zināšanu pārbaudi. Kolonnas \"Vidējais\", \"Rezultāts,\" \"Ltr vērtējums\" un \"Vidējā atzīme\" tiek aprēķinātas automātiski, bet tās var ignorēt, ja vēlaties. Lai piešķirtu papildu kredītpunktus, vienkārši vairāk punktu par uzdevumu, pārsniedzot attiecīgajam uzdevumam norādīto maksimālo punktu skaitu."]
[null,"Ja vēlaties mainīt drukājamo, izmantojiet komandu \"Drukas apgabals\" izvēlnē Lapas izkārtojums."]
[null,"Vērtējumiem atbilstošie rezultāti tiek noteikti, izmantojot standarta procentu skalu atbilstoši piešķirto punktu kopskaitiem 8. un 9. rindā. Pielāgojiet katru uzdevumu vai pārbaudi atbilstoši nepieciešamajiem punktiem un pēc tam pielāgojiet procentus atbilstošajai kategorijai. Lai manuāli veiktu izmaiņas, pārrakstiet rezultātu šūnas."]
[null,"Ievadiet katru uzdevumu, testu vai kontroldarbu un tam atbilstošo punktu skaitu šūnās no H8 līdz X9."]

{"sheet":"KLASES ŽURNĀLS","index":1,"n_rows":24,"n_cols":24,"rows_kept":24,"merged":[[1,1,2,6],[3,1,3,6],[4,1,6,6],[7,4,7,6],[8,4,8,6],[10,4,10,6],[11,4,11,6],[19,1,19,6],[20,1,20,2],[20,3,20,4],[21,1,21,2],[21,3,21,4],[22,1,22,2],[22,3,22,4],[23,1,23,2],[23,3,23,4]]}
[null,"MĀCĪBU IESTĀDES NOSAUKUMS"]
[null,"Skolotāja vārds"]
[{"$nulls":7},"Rezultāts",{"$f":"I4*PunktuKopsumma","v":118},120,126,134,140,{"v":145.6666666666666,"d":"146"},154,160,166,174,180,186,194]
[null,"Mācību priekšmets/projekts",{"$nulls":5},"%",{"v":0.59,"d":"59%"},{"v":0.6,"d":"60%"},{"v":0.63,"d":"63%"},{"v":0.67,"d":"67%"},{"v":0.7,"d":"70%"},{"v":0.728333333333333,"d":"73%"},{"v":0.77,"d":"77%"},{"v":0.8,"d":"80%"},{"v":0.83,"d":"83%"},{"v":0.87,"d":"87%"},{"v":0.9,"d":"90%"},{"v":0.93,"d":"93%"},{"v":0.97,"d":"97%"}]
[null,"Gads/semestris/ceturksnis",{"$nulls":5},"Ltr vērtējums","S","D-","D","D+","C-","C","C+","B-","B","B+","A-","A","A+"]
[{"$nulls":7},"VIDĒJĀ ATZĪME",0,0.67,1,1.33,1.67,2,2.33,2.67,3,3.33,3.67,4,4]
[]
[{"$nulls":4},"Uzdevuma vai testa nosaukums",null,null,"MD1","MD2","C1"]
[{"$nulls":4},"Pieejamo punktu kopskaits",null,null,50,50,100]
[]
[{"$nulls":4},"Uzdevumu un testu kopskaits:",null,null,{"$f":"COUNTA(H8:X8)","v":3}]
[{"$nulls":4},"Iespējamo punktu kopskaits:",null,null,{"$f":"SUM(H9:X9)","v":200}]
[]
[null,"Skolēna vārds, uzvārds","Skolēna ID","Vidējais","Rezultāts","Ltr vērtējums","VIDĒJĀ ATZĪME","Kolonna6","Kolonna7","Kolonna8","Kolonna9","Kolonna10","Kolonna11","Kolonna12","Kolonna13","Kolonna14","Kolonna15","Kolonna16","Kolonna17","Kolonna18","Kolonna19","Kolonna20","Kolonna21","Kolonna22"]
[null,"Skolēns nr. 1",null,{"$f":"IFERROR(IF(COUNT(Vērtējumi[[#This Row],[Kolonna6]:[Kolonna22]])=0,\"\",SUM(Vērtējumi[[#This Row],[Kolonna6]:[Kolonna22]])/PunktuKopsumma),\"\")","v":{"v":0.91,"d":"91.0%"}},{"$f":"IF(COUNT(Vērtējumi[[#This Row],[Kolonna6]:[Kolonna22]])=0,\"\",SUM(Vērtējumi[[#This Row],[Kolonna6]:[Kolonna22]]))","v":182},{"$f":"IFERROR(IF(Vērtējumi[[#This Row],[Vidējais]]<>\"\",HLOOKUP(Vērtējumi[[#This Row],[Vidējais]]*PunktuKopsumma,VērtējumuTabula,3),\"\"),0)","v":"A-"},{"$f":"IFERROR(IF(Vērtējumi[[#This Row],[Vidējais]]<>\"\",HLOOKUP(Vērtējumi[[#This Row],[Vidējais]]*PunktuKopsumma,VērtējumuTabula,4),\"\"),0)","v":3.67},45,45,92]
[null,"Skolēna nr.",null,{"$f":"IFERROR(IF(COUNT(Vērtējumi[[#This Row],[Kolonna6]:[Kolonna22]])=0,\"\",SUM(Vērtējumi[[#This Row],[Kolonna6]:[Kolonna22]])/PunktuKopsumma),\"\")","v":{"v":1,"d":"100.0%"}},{"$f":"IF(COUNT(Vērtējumi[[#This Row],[Kolonna6]:[Kolonna22]])=0,\"\",SUM(Vērtējumi[[#This Row],[Kolonna6]:[Kolonna22]]))","v":200},{"$f":"IFERROR(IF(Vērtējumi[[#This Row],[Vidējais]]<>\"\",HLOOKUP(Vērtējumi[[#This Row],[Vidējais]]*PunktuKopsumma,VērtējumuTabula,3),\"\"),0)","v":"A+"},{"$f":"IFERROR(IF(Vērtējumi[[#This Row],[Vidējais]]<>\"\",HLOOKUP(Vērtējumi[[#This Row],[Vidējais]]*PunktuKopsumma,VērtējumuTabula,4),\"\"),0)","v":{"v":4,"d":"4.00"}},50,50,100]
[{"$nulls":3},{"$f":"IFERROR(IF(COUNT(Vērtējumi[[#This Row],[Kolonna6]:[Kolonna22]])=0,\"\",SUM(Vērtējumi[[#This Row],[Kolonna6]:[Kolonna22]])/PunktuKopsumma),\"\")","v":""},{"$f":"IF(COUNT(Vērtējumi[[#This Row],[Kolonna6]:[Kolonna22]])=0,\"\",SUM(Vērtējumi[[#This Row],[Kolonna6]:[Kolonna22]]))","v":""},{"$f":"IFERROR(IF(Vērtējumi[[#This Row],[Vidējais]]<>\"\",HLOOKUP(Vērtējumi[[#This Row],[Vidējais]]*PunktuKopsumma,VērtējumuTabula,3),\"\"),0)","v":""},{"$f":"IFERROR(IF(Vērtējumi[[#This Row],[Vidējais]]<>\"\",HLOOKUP(Vērtējumi[[#This Row],[Vidējais]]*PunktuKopsumma,VērtējumuTabula,4),\"\"),0)","v":""}]
[{"$nulls":3},{"$f":"IFERROR(IF(COUNT(Vērtējumi[[#This Row],[Kolonna6]:[Kolonna22]])=0,\"\",SUM(Vērtējumi[[#This Row],[Kolonna6]:[Kolonna22]])/PunktuKopsumma),\"\")","v":""},{"$f":"IF(COUNT(Vērtējumi[[#This Row],[Kolonna6]:[Kolonna22]])=0,\"\",SUM(Vērtējumi[[#This Row],[Kolonna6]:[Kolonna22]]))","v":""},{"$f":"IFERROR(IF(Vērtējumi[[#This Row],[Vidējais]]<>\"\",HLOOKUP(Vērtējumi[[#This Row],[Vidējais]]*PunktuKopsumma,VērtējumuTabula,3),\"\"),0)","v":""},{"$f":"IFERROR(IF(Vērtējumi[[#This Row],[Vidējais]]<>\"\",HLOOKUP(Vērtējumi[[#This Row],[Vidējais]]*PunktuKopsumma,VērtējumuTabula,4),\"\"),0)","v":""}]
[{"$nulls":3},{"$f":"IFERROR(IF(COUNT(Vērtējumi[[#This Row],[Kolonna6]:[Kolonna22]])=0,\"\",SUM(Vērtējumi[[#This Row],[Kolonna6]:[Kolonna22]])/PunktuKopsumma),\"\")","v":""},{"$f":"IF(COUNT(Vērtējumi[[#This Row],[Kolonna6]:[Kolonna22]])=0,\"\",SUM(Vērtējumi[[#This Row],[Kolonna6]:[Kolonna22]]))","v":""},{"$f":"IFERROR(IF(Vērtējumi[[#This Row],[Vidējais]]<>\"\",HLOOKUP(Vērtējumi[[#This Row],[Vidējais]]*PunktuKopsumma,VērtējumuTabula,3),\"\"),0)","v":""},{"$f":"IFERROR(IF(Vērtējumi[[#This Row],[Vidējais]]<>\"\",HLOOKUP(Vērtējumi[[#This Row],[Vidējais]]*PunktuKopsumma,VērtējumuTabula,4),\"\"),0)","v":""}]
[]
[null,"Mācību priekšmeta kopsavilkums",null,"Vidējais",null,"Ltr vērtējums","VIDĒJĀ ATZĪME","","","","","","","","","","",""]
[null," Vidējais",null,{"$f":"IFERROR(AVERAGE(Vērtējumi[[#All],[Vidējais]]),0)","v":{"v":0.9550000000000001,"d":"95.5%"}},null,{"$f":"IFERROR(HLOOKUP(D22*PunktuKopsumma,VērtējumuTabula,3),\"\")","v":"A"},{"$f":"IFERROR(AVERAGE(Vērtējumi[[#All],[VIDĒJĀ ATZĪME]]),0)","v":{"v":3.835,"d":"3.84"}},"","","","","","","","","","","","","","","","",""]
[null," Labākais rezultāts",null,{"$f":"IFERROR(MAX(Vērtējumi[[#All],[Vidējais]]),0)","v":{"v":1,"d":"100.0%"}},null,{"$f":"IFERROR(HLOOKUP(D23*PunktuKopsumma,VērtējumuTabula,3),\"\")","v":"A+"},{"$f":"IFERROR(MAX(Vērtējumi[[#All],[VIDĒJĀ ATZĪME]]),0)","v":{"v":4,"d":"4.00"}},"","","","","","","","","","","","","","","","",""]
[null," Sliktākais rezultāts",null,{"$f":"IFERROR(MIN(Vērtējumi[[#All],[Vidējais]]),0)","v":{"v":0.91,"d":"91.0%"}},null,{"$f":"IFERROR(HLOOKUP(D24*PunktuKopsumma,VērtējumuTabula,3),\"\")","v":"A-"},{"$f":"IFERROR(MIN(Vērtējumi[[#All],[VIDĒJĀ ATZĪME]]),0)","v":3.67},"","","","","","","","","","","","","","","","",""]